[Event "Early-Titled-Tuesday-Blitz-May-14-2024"]
[Site "Chess.com"]
[Date "2024.05.14"]
[Round "9"]
[White "romulocardoso"]
[Black "SargissyanSargis"]
[Result "1-0"]
[WhiteElo "2328"]
[BlackElo "2415"]
[TimeControl "180+1"]
[EndTime "9:46:49 PDT"]
[Termination "romulocardoso won by checkmate"]

1. e4 {[%clk 0:03:00.9]} 1... e5 {[%clk 0:01:15.6]} 2. Nf3 {[%clk 0:02:58.8]}
2... Nc6 {[%clk 0:01:15.3]} 3. d4 {[%clk 0:02:59.4]} 3... exd4 {[%clk
0:01:15.4]} 4. Bc4 {[%clk 0:03:00]} 4... Bc5 {[%clk 0:01:15.1]} 5. Ng5 {[%clk
0:02:59.1]} 5... Ne5 {[%clk 0:00:59]} 6. Nxf7 {[%clk 0:02:58.8]} 6... Nxf7
{[%clk 0:00:59.1]} 7. Bxf7+ {[%clk 0:02:59.7]} 7... Kxf7 {[%clk 0:00:59.9]} 8.
Qh5+ {[%clk 0:02:59.7]} 8... g6 {[%clk 0:00:57.4]} 9. Qxc5 {[%clk 0:03:00.3]}
9... Nf6 {[%clk 0:00:50.9]} 10. O-O {[%clk 0:02:58.6]} 10... Re8 {[%clk
0:00:46]} 11. e5 {[%clk 0:02:57.9]} 11... Ng4 {[%clk 0:00:43.5]} 12. Qxd4 {[%clk
0:02:30.8]} 12... Nxe5 {[%clk 0:00:34.2]} 13. f4 {[%clk 0:02:25.8]} 13... Nc6
{[%clk 0:00:19.8]} 14. Qd5+ {[%clk 0:02:25.1]} 14... Kg7 {[%clk 0:00:19.7]} 15.
f5 {[%clk 0:02:25.5]} 15... Qf6 {[%clk 0:00:14.7]} 16. fxg6 {[%clk 0:01:44.9]}
16... Qd4+ {[%clk 0:00:14.2]} 17. Qxd4+ {[%clk 0:01:41.4]} 17... Nxd4 {[%clk
0:00:15.1]} 18. Na3 {[%clk 0:01:31.7]} 18... hxg6 {[%clk 0:00:15.6]} 19. Bd2
{[%clk 0:01:25.8]} 19... d5 {[%clk 0:00:15.1]} 20. Bc3 {[%clk 0:01:25.7]} 20...
c5 {[%clk 0:00:14.7]} 21. Nb5 {[%clk 0:01:25.4]} 21... Bf5 {[%clk 0:00:13.7]}
22. Nc7 {[%clk 0:01:21.5]} 22... Rac8 {[%clk 0:00:12.6]} 23. Nxe8+ {[%clk
0:01:20.7]} 23... Rxe8 {[%clk 0:00:13.2]} 24. Rae1 {[%clk 0:01:18.4]} 24... Be4
{[%clk 0:00:13.2]} 25. Rd1 {[%clk 0:01:13.6]} 25... Kg8 {[%clk 0:00:09.9]} 26.
Bxd4 {[%clk 0:01:12.7]} 26... cxd4 {[%clk 0:00:10.6]} 27. Rxd4 {[%clk
0:01:13.4]} 27... Rc8 {[%clk 0:00:11]} 28. c3 {[%clk 0:01:04.6]} 28... Rc6
{[%clk 0:00:11.6]} 29. Rb4 {[%clk 0:00:55.2]} 29... b6 {[%clk 0:00:09.9]} 30.
Re1 {[%clk 0:00:51.6]} 30... Kf7 {[%clk 0:00:09.5]} 31. c4 {[%clk 0:00:51.9]}
31... a5 {[%clk 0:00:03.3]} 32. cxd5 {[%clk 0:00:51.6]} 32... Bxd5 {[%clk
0:00:02.1]} 33. Rf4+ {[%clk 0:00:52]} 33... Kg7 {[%clk 0:00:02]} 34. Re7+ {[%clk
0:00:50.7]} 34... Kh6 {[%clk 0:00:01.6]} 35. h4 {[%clk 0:00:45.6]} 35... Rc2
{[%clk 0:00:01.7]} 36. g4 {[%clk 0:00:39.6]} 36... Rxb2 {[%clk 0:00:01.1]} 37.
Rf8 {[%clk 0:00:37.9]} 37... g5 {[%clk 0:00:00.7]} 38. Rf6# {[%clk 0:00:32.2]}
1-0

[Event "Early-Titled-Tuesday-Blitz-May-14-2024"]
[Site "Chess.com"]
[Date "2024.05.14"]
[Round "9"]
[White "ValeriyGrinev"]
[Black "Happy1712Drummer"]
[Result "1/2-1/2"]
[WhiteElo "2591"]
[BlackElo "2452"]
[TimeControl "180+1"]
[EndTime "9:46:51 PDT"]
[Termination "Game drawn - insufficient material"]

1. d4 {[%clk 0:03:00.9]} 1... d5 {[%clk 0:02:59.8]} 2. c4 {[%clk 0:03:00.6]}
2... e6 {[%clk 0:03:00.2]} 3. Nf3 {[%clk 0:03:00.3]} 3... a6 {[%clk 0:03:00.3]}
4. e3 {[%clk 0:03:00.1]} 4... Nf6 {[%clk 0:02:57.8]} 5. Nbd2 {[%clk 0:02:59.8]}
5... b6 {[%clk 0:02:58]} 6. Bd3 {[%clk 0:02:59.6]} 6... Bb7 {[%clk 0:02:58.2]}
7. O-O {[%clk 0:02:59.2]} 7... Nbd7 {[%clk 0:02:57]} 8. Qe2 {[%clk 0:02:58.6]}
8... Bd6 {[%clk 0:02:55.9]} 9. e4 {[%clk 0:02:58.5]} 9... dxe4 {[%clk
0:02:51.9]} 10. Nxe4 {[%clk 0:02:59.4]} 10... Nxe4 {[%clk 0:02:50]} 11. Bxe4
{[%clk 0:03:00.3]} 11... Bxe4 {[%clk 0:02:48.3]} 12. Qxe4 {[%clk 0:03:01.2]}
12... O-O {[%clk 0:02:47.5]} 13. b3 {[%clk 0:02:59.9]} 13... Nf6 {[%clk
0:02:37]} 14. Qe2 {[%clk 0:02:59.8]} 14... c5 {[%clk 0:02:36.9]} 15. Rd1 {[%clk
0:02:59.4]} 15... Qc7 {[%clk 0:02:36.7]} 16. Bb2 {[%clk 0:02:58.2]} 16... cxd4
{[%clk 0:02:27.5]} 17. Bxd4 {[%clk 0:02:59.1]} 17... Nd7 {[%clk 0:01:57.5]} 18.
Bxg7 {[%clk 0:02:42]} 18... Kxg7 {[%clk 0:01:48.2]} 19. Qd2 {[%clk 0:02:40.9]}
19... Ne5 {[%clk 0:01:20.2]} 20. Qxd6 {[%clk 0:02:22.8]} 20... Nxf3+ {[%clk
0:01:19.7]} 21. gxf3 {[%clk 0:02:23.7]} 21... Qxd6 {[%clk 0:01:20.4]} 22. Rxd6
{[%clk 0:02:24.1]} 22... b5 {[%clk 0:01:21.1]} 23. cxb5 {[%clk 0:02:19.2]} 23...
axb5 {[%clk 0:01:21.4]} 24. Rb6 {[%clk 0:02:19.5]} 24... Rfb8 {[%clk 0:01:20.4]}
25. Rxb8 {[%clk 0:02:19.5]} 25... Rxb8 {[%clk 0:01:20.9]} 26. a4 {[%clk
0:02:20.1]} 26... bxa4 {[%clk 0:01:20.8]} 27. bxa4 {[%clk 0:02:21]} 27... Kf6
{[%clk 0:01:08.7]} 28. a5 {[%clk 0:02:20]} 28... Kf5 {[%clk 0:01:04.8]} 29. a6
{[%clk 0:02:18]} 29... Kf4 {[%clk 0:00:48.6]} 30. a7 {[%clk 0:02:16.5]} 30...
Ra8 {[%clk 0:00:48.1]} 31. Kg2 {[%clk 0:02:17]} 31... Rg8+ {[%clk 0:00:47.3]}
32. Kf1 {[%clk 0:02:13.7]} 32... Ra8 {[%clk 0:00:47.7]} 33. Ra3 {[%clk
0:02:10.1]} 33... h5 {[%clk 0:00:35.5]} 34. Kg2 {[%clk 0:02:08.8]} 34... e5
{[%clk 0:00:29.5]} 35. Kh3 {[%clk 0:02:07.4]} 35... Kg5 {[%clk 0:00:29.5]} 36.
Ra5 {[%clk 0:02:02.3]} 36... f6 {[%clk 0:00:29.5]} 37. Ra4 {[%clk 0:01:59.6]}
37... Kg6 {[%clk 0:00:22.9]} 38. Kh4 {[%clk 0:01:56.6]} 38... Kf5 {[%clk
0:00:23.2]} 39. Kg3 {[%clk 0:01:49.5]} 39... Kg5 {[%clk 0:00:21.3]} 40. f4+
{[%clk 0:01:44.4]} 40... exf4+ {[%clk 0:00:20.6]} 41. Kf3 {[%clk 0:01:44.5]}
41... f5 {[%clk 0:00:20.4]} 42. h3 {[%clk 0:01:32.5]} 42... Kh4 {[%clk
0:00:04.3]} 43. Rxf4+ {[%clk 0:01:25.4]} 43... Kxh3 {[%clk 0:00:04]} 44. Rxf5
{[%clk 0:01:18]} 44... h4 {[%clk 0:00:04.1]} 45. Rf7 {[%clk 0:01:18.2]} 45...
Kh2 {[%clk 0:00:03.2]} 46. Rh7 {[%clk 0:01:17.1]} 46... h3 {[%clk 0:00:02.7]}
47. Ke4 {[%clk 0:01:13.8]} 47... Kg2 {[%clk 0:00:02.6]} 48. f4 {[%clk
0:01:11.5]} 48... h2 {[%clk 0:00:03.1]} 49. Rg7+ {[%clk 0:01:08.7]} 49... Kf2
{[%clk 0:00:03.3]} 50. Rh7 {[%clk 0:01:07.6]} 50... Kg1 {[%clk 0:00:03.7]} 51.
f5 {[%clk 0:01:05]} 51... h1=Q+ {[%clk 0:00:03.5]} 52. Rxh1+ {[%clk 0:01:05.2]}
52... Kxh1 {[%clk 0:00:04]} 53. f6 {[%clk 0:01:05.6]} 53... Rxa7 {[%clk
0:00:04.7]} 54. Ke5 {[%clk 0:01:06.2]} 54... Rf7 {[%clk 0:00:05.1]} 55. Ke6
{[%clk 0:01:06.5]} 55... Rxf6+ {[%clk 0:00:06]} 56. Kxf6 {[%clk 0:01:07.4]}
1/2-1/2

[Event "Early-Titled-Tuesday-Blitz-May-14-2024"]
[Site "Chess.com"]
[Date "2024.05.14"]
[Round "9"]
[White "lilleper1"]
[Black "Mops_2004"]
[Result "1-0"]
[WhiteElo "2927"]
[BlackElo "2815"]
[TimeControl "180+1"]
[EndTime "9:47:02 PDT"]
[Termination "lilleper1 won by resignation"]

1. e4 {[%clk 0:03:00.9]} 1... g6 {[%clk 0:03:00.2]} 2. d4 {[%clk 0:03:00.6]}
2... Bg7 {[%clk 0:03:00.5]} 3. Nc3 {[%clk 0:03:01.2]} 3... d6 {[%clk 0:03:00.7]}
4. Be3 {[%clk 0:03:01.8]} 4... a6 {[%clk 0:03:01.2]} 5. Qd2 {[%clk 0:03:02.2]}
5... b5 {[%clk 0:03:01.6]} 6. h4 {[%clk 0:03:01.4]} 6... h6 {[%clk 0:03:01.4]}
7. h5 {[%clk 0:02:59]} 7... g5 {[%clk 0:03:01.7]} 8. f4 {[%clk 0:02:59.4]} 8...
gxf4 {[%clk 0:03:02.6]} 9. Bxf4 {[%clk 0:02:59.8]} 9... Nd7 {[%clk 0:03:03]} 10.
Nf3 {[%clk 0:02:59.2]} 10... c5 {[%clk 0:03:02.9]} 11. dxc5 {[%clk 0:02:54.2]}
11... Nxc5 {[%clk 0:03:02.6]} 12. e5 {[%clk 0:02:39.1]} 12... dxe5 {[%clk
0:02:42.1]} 13. Qxd8+ {[%clk 0:02:38]} 13... Kxd8 {[%clk 0:02:43]} 14. Nxe5
{[%clk 0:02:38.3]} 14... Ke8 {[%clk 0:02:18.7]} 15. O-O-O {[%clk 0:02:11.3]}
15... Nf6 {[%clk 0:02:15.5]} 16. Be2 {[%clk 0:02:07.7]} 16... Bb7 {[%clk
0:02:12.3]} 17. Rhf1 {[%clk 0:01:53.6]} 17... b4 {[%clk 0:02:04.3]} 18. Nb1
{[%clk 0:01:50.6]} 18... Nd5 {[%clk 0:01:55.3]} 19. g3 {[%clk 0:00:58.9]} 19...
Rc8 {[%clk 0:01:34.1]} 20. Bc4 {[%clk 0:00:57.5]} 20... e6 {[%clk 0:01:23.4]}
21. Nd2 {[%clk 0:00:57.5]} 21... Ke7 {[%clk 0:01:09.5]} 22. Rde1 {[%clk
0:00:45]} 22... Rhf8 {[%clk 0:00:46.8]} 23. Rf2 {[%clk 0:00:36.7]} 23... Nxf4
{[%clk 0:00:23.9]} 24. Rxf4 {[%clk 0:00:30.5]} 24... a5 {[%clk 0:00:05.8]} 25.
Nb3 {[%clk 0:00:26.3]} 25... Nxb3+ {[%clk 0:00:05.2]} 26. axb3 {[%clk 0:00:24]}
26... Bxe5 {[%clk 0:00:03.4]} 27. Rxe5 {[%clk 0:00:23.8]} 27... Rg8 {[%clk
0:00:02]} 28. Rxa5 {[%clk 0:00:19.5]} 28... Rxg3 {[%clk 0:00:01.8]} 29. Ra7
{[%clk 0:00:19.7]} 29... Rc7 {[%clk 0:00:02.3]} 30. Be2 {[%clk 0:00:17.7]} 30...
Rg1+ {[%clk 0:00:01.7]} 31. Kd2 {[%clk 0:00:17.9]} 31... Rg2 {[%clk 0:00:02.2]}
32. Rxb4 {[%clk 0:00:18]} 32... Rd7+ {[%clk 0:00:00.4]} 33. Ke3 {[%clk
0:00:15.1]} 33... Rg3+ {[%clk 0:00:00.6]} 34. Kf2 {[%clk 0:00:14.3]} 34... Rg2+
{[%clk 0:00:01.5]} 35. Kf1 {[%clk 0:00:14.3]} 35... Rxe2 {[%clk 0:00:01.5]} 36.
Rbxb7 {[%clk 0:00:11.3]} 36... Rxb7 {[%clk 0:00:01.3]} 37. Rxb7+ {[%clk
0:00:11.5]} 1-0

[Event "Early-Titled-Tuesday-Blitz-May-14-2024"]
[Site "Chess.com"]
[Date "2024.05.14"]
[Round "9"]
[White "briesmas"]
[Black "toninhojit"]
[Result "1-0"]
[WhiteElo "2394"]
[BlackElo "2550"]
[TimeControl "180+1"]
[EndTime "9:47:02 PDT"]
[Termination "briesmas won by resignation"]

1. e4 {[%clk 0:03:00.9]} 1... g6 {[%clk 0:02:59]} 2. d4 {[%clk 0:02:59.1]} 2...
Bg7 {[%clk 0:02:59.7]} 3. Nc3 {[%clk 0:02:58.1]} 3... d6 {[%clk 0:03:00.4]} 4.
Be3 {[%clk 0:02:50.8]} 4... c6 {[%clk 0:03:00.6]} 5. Qd2 {[%clk 0:02:50.5]} 5...
b5 {[%clk 0:03:00.8]} 6. f3 {[%clk 0:02:48.5]} 6... Nd7 {[%clk 0:03:01.1]} 7. h4
{[%clk 0:02:48.1]} 7... h5 {[%clk 0:03:00.5]} 8. Nh3 {[%clk 0:02:47.4]} 8... Nb6
{[%clk 0:03:00.8]} 9. Ng5 {[%clk 0:02:44.5]} 9... Rb8 {[%clk 0:03:00.4]} 10. b3
{[%clk 0:02:27.7]} 10... e6 {[%clk 0:02:59.2]} 11. Rd1 {[%clk 0:02:25.2]} 11...
Ne7 {[%clk 0:02:59.1]} 12. Bd3 {[%clk 0:02:22.8]} 12... d5 {[%clk 0:02:58.4]}
13. e5 {[%clk 0:02:19.9]} 13... a6 {[%clk 0:02:52.6]} 14. O-O {[%clk 0:02:04.5]}
14... Qc7 {[%clk 0:02:52.2]} 15. Qf2 {[%clk 0:01:57.3]} 15... Nd7 {[%clk
0:02:50.7]} 16. f4 {[%clk 0:01:55.9]} 16... Nf5 {[%clk 0:02:41.3]} 17. a4 {[%clk
0:01:50.3]} 17... Nh6 {[%clk 0:02:21.1]} 18. Bxg6 {[%clk 0:01:37.9]} 18... b4
{[%clk 0:02:00.4]} 19. Nxe6 {[%clk 0:01:33.5]} 19... Qb6 {[%clk 0:01:52.8]} 20.
Nxg7+ {[%clk 0:01:11]} 20... Kf8 {[%clk 0:01:52.7]} 21. Ne2 {[%clk 0:01:08.4]}
21... Kxg7 {[%clk 0:01:29.8]} 22. Bd3 {[%clk 0:01:07.2]} 22... Ng4 {[%clk
0:01:28.9]} 23. Qg3 {[%clk 0:01:06.7]} 23... Kf8 {[%clk 0:01:12.9]} 24. f5
{[%clk 0:01:05.4]} 24... Rg8 {[%clk 0:01:13.4]} 25. f6 {[%clk 0:00:54.2]} 25...
Ndxe5 {[%clk 0:01:12.4]} 26. Bh6+ {[%clk 0:00:43.8]} 26... Ke8 {[%clk
0:00:58.9]} 27. Kh1 {[%clk 0:00:36.5]} 27... Be6 {[%clk 0:00:47]} 28. Bf4 {[%clk
0:00:20.6]} 28... Nxd3 {[%clk 0:00:47.1]} 29. Qxd3 {[%clk 0:00:15.6]} 29... Rc8
{[%clk 0:00:43.3]} 30. Ng3 {[%clk 0:00:16]} 30... Nxf6 {[%clk 0:00:36.4]} 31.
Bg5 {[%clk 0:00:15.7]} 31... Ng4 {[%clk 0:00:34.3]} 32. Rde1 {[%clk 0:00:15.7]}
32... c5 {[%clk 0:00:30]} 33. Qh7 {[%clk 0:00:16]} 33... Rf8 {[%clk 0:00:29.3]}
34. Nxh5 {[%clk 0:00:10]} 34... cxd4 {[%clk 0:00:29.6]} 35. Ng7+ {[%clk
0:00:08.9]} 35... Kd7 {[%clk 0:00:29.9]} 36. Nxe6 {[%clk 0:00:09]} 36... Ne3
{[%clk 0:00:17.4]} 37. Nxf8+ {[%clk 0:00:08.6]} 37... Rxf8 {[%clk 0:00:18.2]}
38. Rxf7+ {[%clk 0:00:08.2]} 38... Rxf7 {[%clk 0:00:18.8]} 39. Qxf7+ {[%clk
0:00:09.1]} 39... Kc6 {[%clk 0:00:18.7]} 40. Qf6+ {[%clk 0:00:08.5]} 40... Kb7
{[%clk 0:00:19]} 41. Qxb6+ {[%clk 0:00:09.4]} 41... Kxb6 {[%clk 0:00:19.9]} 42.
Bxe3 {[%clk 0:00:10.1]} 1-0

[Event "Early-Titled-Tuesday-Blitz-May-14-2024"]
[Site "Chess.com"]
[Date "2024.05.14"]
[Round "9"]
[White "JJDAREK"]
[Black "carloseduar100"]
[Result "0-1"]
[WhiteElo "2370"]
[BlackElo "2242"]
[TimeControl "180+1"]
[EndTime "9:47:04 PDT"]
[Termination "carloseduar100 won on time"]

1. d4 {[%clk 0:03:00.9]} 1... d5 {[%clk 0:02:44]} 2. c4 {[%clk 0:02:59.6]} 2...
e5 {[%clk 0:02:44]} 3. dxe5 {[%clk 0:02:58.7]} 3... d4 {[%clk 0:02:44.3]} 4. Nf3
{[%clk 0:02:58.7]} 4... Nc6 {[%clk 0:02:44.5]} 5. a3 {[%clk 0:02:59]} 5... Nge7
{[%clk 0:02:44.2]} 6. e3 {[%clk 0:02:52.1]} 6... Bg4 {[%clk 0:02:43.4]} 7. Be2
{[%clk 0:02:45.3]} 7... dxe3 {[%clk 0:02:42.8]} 8. Qxd8+ {[%clk 0:02:40.3]} 8...
Rxd8 {[%clk 0:02:42.2]} 9. Bxe3 {[%clk 0:02:40.7]} 9... Ng6 {[%clk 0:02:40.2]}
10. Nbd2 {[%clk 0:02:32.9]} 10... Ngxe5 {[%clk 0:02:37]} 11. Nxe5 {[%clk
0:02:32.9]} 11... Nxe5 {[%clk 0:02:37.9]} 12. Bf4 {[%clk 0:01:51.2]} 12... Bxe2
{[%clk 0:02:34.6]} 13. Kxe2 {[%clk 0:01:52.1]} 13... Nd3 {[%clk 0:02:01.2]} 14.
Bxc7 {[%clk 0:01:48]} 14... Rd7 {[%clk 0:02:01.8]} 15. Bg3 {[%clk 0:01:15.9]}
15... Nxb2 {[%clk 0:01:14.2]} 16. Rhb1 {[%clk 0:01:15.1]} 16... Rxd2+ {[%clk
0:00:59.1]} 17. Kxd2 {[%clk 0:01:13.2]} 17... Nxc4+ {[%clk 0:01:00]} 18. Kc3
{[%clk 0:01:10.5]} 18... Na5 {[%clk 0:00:58.4]} 19. Re1+ {[%clk 0:01:04.7]}
19... Kd7 {[%clk 0:00:55.7]} 20. Rad1+ {[%clk 0:01:02.9]} 20... Kc6 {[%clk
0:00:55.8]} 21. Re8 {[%clk 0:00:42.2]} 21... g6 {[%clk 0:00:55.6]} 22. Rdd8
{[%clk 0:00:35]} 22... Bg7+ {[%clk 0:00:55]} 23. Kb4 {[%clk 0:00:32.7]} 23...
Rxe8 {[%clk 0:00:55]} 24. Rxe8 {[%clk 0:00:33.1]} 24... b6 {[%clk 0:00:55.4]}
25. Re7 {[%clk 0:00:29.4]} 25... Nb7 {[%clk 0:00:46.9]} 26. Rxf7 {[%clk
0:00:28]} 26... a5+ {[%clk 0:00:47.4]} 27. Kb3 {[%clk 0:00:24.9]} 27... Nc5+
{[%clk 0:00:47.2]} 28. Ka2 {[%clk 0:00:24.2]} 28... Ne6 {[%clk 0:00:42.3]} 29.
a4 {[%clk 0:00:20]} 29... h5 {[%clk 0:00:42.4]} 30. Re7 {[%clk 0:00:18.9]} 30...
Kd5 {[%clk 0:00:42.2]} 31. Bc7 {[%clk 0:00:17.2]} 31... Bd4 {[%clk 0:00:42.1]}
32. f3 {[%clk 0:00:17]} 32... Bc5 {[%clk 0:00:37.7]} 33. Bb8 {[%clk 0:00:14.4]}
33... Bxe7 {[%clk 0:00:37.5]} 34. g4 {[%clk 0:00:12]} 34... hxg4 {[%clk
0:00:36.9]} 35. fxg4 {[%clk 0:00:12.9]} 35... Nc5 {[%clk 0:00:35.9]} 36. Bg3
{[%clk 0:00:10.6]} 36... Nxa4 {[%clk 0:00:35.8]} 37. h4 {[%clk 0:00:11]} 37...
Nc3+ {[%clk 0:00:35.3]} 38. Kb3 {[%clk 0:00:11]} 38... Ne4 {[%clk 0:00:36.2]}
39. Be1 {[%clk 0:00:08.3]} 39... Kc6 {[%clk 0:00:30.5]} 40. h5 {[%clk
0:00:08.5]} 40... gxh5 {[%clk 0:00:30.7]} 41. gxh5 {[%clk 0:00:09.4]} 41... Bg5
{[%clk 0:00:31.1]} 0-1

[Event "Early-Titled-Tuesday-Blitz-May-14-2024"]
[Site "Chess.com"]
[Date "2024.05.14"]
[Round "9"]
[White "bubeliang"]
[Black "Let_it_be_1"]
[Result "0-1"]
[WhiteElo "2811"]
[BlackElo "2638"]
[TimeControl "180+1"]
[EndTime "9:47:06 PDT"]
[Termination "Let_it_be_1 won by checkmate"]

1. e4 {[%clk 0:00:03.2]} 1... e6 {[%clk 0:02:58.9]} 2. d4 {[%clk 0:00:03.1]}
2... d5 {[%clk 0:02:59.8]} 3. e5 {[%clk 0:00:02.1]} 3... c5 {[%clk 0:02:59.5]}
4. c3 {[%clk 0:00:02.5]} 4... Qb6 {[%clk 0:03:00]} 5. Nf3 {[%clk 0:00:02.3]}
5... Nc6 {[%clk 0:03:00.4]} 6. a3 {[%clk 0:00:02]} 6... Bd7 {[%clk 0:03:00.2]}
7. Be2 {[%clk 0:00:02]} 7... Nh6 {[%clk 0:02:58.4]} 8. b4 {[%clk 0:00:02]} 8...
cxd4 {[%clk 0:02:58]} 9. cxd4 {[%clk 0:00:02.2]} 9... Nf5 {[%clk 0:02:58.2]} 10.
Bb2 {[%clk 0:00:02.8]} 10... Na5 {[%clk 0:02:57.5]} 11. O-O {[%clk 0:00:01.7]}
11... Rc8 {[%clk 0:02:52.4]} 12. Nbd2 {[%clk 0:00:01.8]} 12... Nc4 {[%clk
0:02:52.4]} 13. Nxc4 {[%clk 0:00:01.8]} 13... dxc4 {[%clk 0:02:52.5]} 14. Rc1
{[%clk 0:00:02.6]} 14... a5 {[%clk 0:02:46.7]} 15. Rxc4 {[%clk 0:00:02]} 15...
Rxc4 {[%clk 0:02:40.9]} 16. Bxc4 {[%clk 0:00:02.9]} 16... axb4 {[%clk
0:02:41.5]} 17. axb4 {[%clk 0:00:03.8]} 17... Qxb4 {[%clk 0:02:40.6]} 18. Qe2
{[%clk 0:00:02.6]} 18... Bc6 {[%clk 0:02:31.9]} 19. Bd3 {[%clk 0:00:02.1]} 19...
Ne7 {[%clk 0:01:55.4]} 20. Ba1 {[%clk 0:00:02]} 20... Nd5 {[%clk 0:01:54.1]} 21.
Be4 {[%clk 0:00:02.2]} 21... Be7 {[%clk 0:01:41.4]} 22. Qd1 {[%clk 0:00:01.6]}
22... h6 {[%clk 0:01:34.2]} 23. Qb1 {[%clk 0:00:01.6]} 23... Qa5 {[%clk
0:01:29.2]} 24. Bd3 {[%clk 0:00:01.5]} 24... O-O {[%clk 0:01:26.8]} 25. Bb2
{[%clk 0:00:02.1]} 25... Qb4 {[%clk 0:01:13.5]} 26. Bh7+ {[%clk 0:00:02.2]}
26... Kh8 {[%clk 0:01:13]} 27. Be4 {[%clk 0:00:02.4]} 27... Ra8 {[%clk
0:01:06.7]} 28. Qc2 {[%clk 0:00:01.8]} 28... Ra2 {[%clk 0:01:04]} 29. Rb1 {[%clk
0:00:01.8]} 29... Qb6 {[%clk 0:00:44]} 30. h3 {[%clk 0:00:01.9]} 30... Ba3
{[%clk 0:00:36.5]} 31. Qd1 {[%clk 0:00:01.4]} 31... Rxb2 {[%clk 0:00:34.9]} 32.
Ra1 {[%clk 0:00:01.3]} 32... Nc3 {[%clk 0:00:28.6]} 33. Rxa3 {[%clk 0:00:01.7]}
33... Nxe4 {[%clk 0:00:21.2]} 34. Qd3 {[%clk 0:00:02.1]} 34... Qb5 {[%clk
0:00:15.5]} 35. Qe3 {[%clk 0:00:01.8]} 35... Rb1+ {[%clk 0:00:14.7]} 36. Kh2
{[%clk 0:00:02.3]} 36... Qf1 {[%clk 0:00:14.4]} 37. Ne1 {[%clk 0:00:01.4]} 37...
Rxe1 {[%clk 0:00:13.6]} 38. Ra1 {[%clk 0:00:02.1]} 38... Qg1# {[%clk 0:00:12.7]}
0-1

[Event "Early-Titled-Tuesday-Blitz-May-14-2024"]
[Site "Chess.com"]
[Date "2024.05.14"]
[Round "9"]
[White "SlavenPastar"]
[Black "laurenzchess"]
[Result "0-1"]
[WhiteElo "2619"]
[BlackElo "2506"]
[TimeControl "180+1"]
[EndTime "9:47:07 PDT"]
[Termination "laurenzchess won by resignation"]

1. Nf3 {[%clk 0:03:00.9]} 1... d5 {[%clk 0:02:52.5]} 2. g3 {[%clk 0:03:01.3]}
2... Nf6 {[%clk 0:02:50]} 3. Bg2 {[%clk 0:03:01.7]} 3... e6 {[%clk 0:02:45.3]}
4. O-O {[%clk 0:03:01.9]} 4... Be7 {[%clk 0:02:46]} 5. c4 {[%clk 0:03:02.3]}
5... O-O {[%clk 0:02:40.2]} 6. b3 {[%clk 0:03:02.9]} 6... c5 {[%clk 0:02:22.9]}
7. cxd5 {[%clk 0:03:02.4]} 7... exd5 {[%clk 0:02:22.3]} 8. d4 {[%clk 0:03:02.8]}
8... Nc6 {[%clk 0:02:19.6]} 9. Nc3 {[%clk 0:03:01.6]} 9... Bg4 {[%clk
0:02:05.8]} 10. Be3 {[%clk 0:02:50.9]} 10... c4 {[%clk 0:01:58.9]} 11. bxc4
{[%clk 0:02:40.6]} 11... Bxf3 {[%clk 0:01:58]} 12. Bxf3 {[%clk 0:02:38.5]} 12...
dxc4 {[%clk 0:01:58.7]} 13. d5 {[%clk 0:02:28.7]} 13... Ne5 {[%clk 0:01:58]} 14.
Bg2 {[%clk 0:02:22.8]} 14... Bb4 {[%clk 0:01:53.5]} 15. Rc1 {[%clk 0:02:20.2]}
15... Qa5 {[%clk 0:01:52.3]} 16. Bd4 {[%clk 0:02:12.8]} 16... Rfe8 {[%clk
0:01:47.8]} 17. a3 {[%clk 0:02:05.6]} 17... Bc5 {[%clk 0:01:36.9]} 18. Bxc5
{[%clk 0:02:00.5]} 18... Qxc5 {[%clk 0:01:37.8]} 19. h3 {[%clk 0:01:54.1]} 19...
b5 {[%clk 0:01:36.5]} 20. Kh2 {[%clk 0:01:51.7]} 20... a5 {[%clk 0:01:33.6]} 21.
f4 {[%clk 0:01:51]} 21... Neg4+ {[%clk 0:01:28.3]} 22. hxg4 {[%clk 0:01:41.7]}
22... Nxg4+ {[%clk 0:01:29.2]} 23. Kh1 {[%clk 0:01:33.7]} 23... Qd6 {[%clk
0:01:20.4]} 24. Rf3 {[%clk 0:01:05]} 24... Re3 {[%clk 0:01:06.6]} 25. Qd4 {[%clk
0:00:42.1]} 25... Rae8 {[%clk 0:00:48.1]} 26. Kg1 {[%clk 0:00:38]} 26... Qh6
{[%clk 0:00:43.7]} 27. d6 {[%clk 0:00:22.5]} 27... Rxf3 {[%clk 0:00:23]} 28.
exf3 {[%clk 0:00:19.4]} 28... Qh2+ {[%clk 0:00:22.9]} 29. Kf1 {[%clk 0:00:18.4]}
29... Ne3+ {[%clk 0:00:23.6]} 30. Qxe3 {[%clk 0:00:16.9]} 30... Rxe3 {[%clk
0:00:24.5]} 31. d7 {[%clk 0:00:15.5]} 31... Rd3 {[%clk 0:00:20.5]} 32. Rd1
{[%clk 0:00:11.6]} 32... Rxd7 {[%clk 0:00:17.3]} 33. Rxd7 {[%clk 0:00:12.5]}
33... g6 {[%clk 0:00:17.6]} 34. Nxb5 {[%clk 0:00:12]} 34... Qxg3 {[%clk
0:00:17.8]} 35. Rd4 {[%clk 0:00:10.7]} 35... h5 {[%clk 0:00:14.1]} 36. f5 {[%clk
0:00:05.2]} 36... Qe5 {[%clk 0:00:09.8]} 37. Rxc4 {[%clk 0:00:01.8]} 37... Qxb5
{[%clk 0:00:09.5]} 0-1